fUST/lending_fUST_20250212
["ID","MTS","AMOUNT","RATE_DAILY","PERIOD"]
[352770442,1739302232264,-500.0,0.00010957,2]
[352770443,1739302232274,-500.0,0.00010957,2]
[352770444,1739302232284,-500.0,0.00010957,2]
[352770445,1739302232293,-500.0,0.00010957,2]
[352770446,1739302232302,-500.0,0.00010957,2]
[352770447,1739302232311,-593.31332307,0.00010957,2]
[352770448,1739302232321,-500.0,0.00010957,2]
[352770449,1739302232330,-500.0,0.00010957,2]
[352770450,1739302232343,-500.0,0.00010957,2]
[352770451,1739302232352,-500.0,0.00010957,2]
[352770452,1739302232361,-500.0,0.00010957,2]
[352770453,1739302232371,-500.0,0.00010957,2]
[352770454,1739302232381,-200.0,0.00010957,2]
[352770455,1739302232390,-500.0,0.00010957,2]
[352770456,1739302232399,-500.0,0.00010957,2]
[352770457,1739302232408,-500.0,0.00010957,2]
[352770458,1739302232417,-500.0,0.00010957,2]
[352770459,1739302232426,-500.0,0.00010957,2]
[352770460,1739302232436,-535.21730271,0.00010957,2]
[352770461,1739302232445,-238.49192828,0.00010958,2]
[352770462,1739302232455,-500.0,0.00010958,2]
[352770463,1739302232464,-500.0,0.00010958,2]
[352770464,1739302232473,-500.0,0.00010958,2]
[352770465,1739302232483,-500.0,0.00010958,2]
[352770466,1739302232493,-500.0,0.00010958,2]
[352770467,1739302232502,-501.22811878,0.00010958,2]
[352770468,1739302232511,-500.0,0.00010958,2]
[352770469,1739302232521,-500.0,0.00010958,2]
[352770470,1739302232532,-500.0,0.00010958,2]
[352770471,1739302232543,-500.0,0.00010958,2]
[352770472,1739302232554,-500.0,0.00010958,2]
[352770473,1739302232564,-500.0,0.00010958,2]
[352770474,1739302232574,-500.0,0.00010958,2]
[352770475,1739302232584,-500.0,0.00010958,2]
[352770476,1739302232596,-504.2377707,0.00010958,2]
[352770477,1739302232605,-500.0,0.00010958,2]
[352770478,1739302232615,-500.0,0.00010958,2]
[352770479,1739302232625,-500.0,0.00010958,2]
[352770480,1739302232634,-500.0,0.00010958,2]
[352770481,1739302232644,-351.34382465,0.00010958,2]
[352770482,1739302232654,-500.0,0.00010958,2]
[352770483,1739302232664,-500.0,0.00010958,2]
[352770484,1739302232674,-500.0,0.00010958,2]
[352770485,1739302232685,-500.0,0.00010958,2]
[352770486,1739302232695,-500.0,0.00010958,2]
[352770487,1739302232705,-500.0,0.00010958,2]
[352770488,1739302232714,-313.61657474,0.00010958,2]
[352770489,1739302232724,-507.28860229,0.00010958,2]
[352770490,1739302232733,-500.0,0.00010958,2]
[352770491,1739302232742,-505.80915856,0.00010958,2]
[352770492,1739302232752,-500.0,0.00010958,2]
[352770493,1739302232760,-501.50442597,0.00010958,2]
[352770494,1739302232770,-500.0,0.00010958,2]
[352770495,1739302232780,-500.0,0.00010958,2]
[352770496,1739302232789,-500.0,0.00010958,2]
[352770497,1739302232799,-500.0,0.00010958,2]
[352770498,1739302232809,-500.0,0.00010958,2]
[352770499,1739302232818,-500.0,0.00010958,2]
[352770500,1739302232827,-86.56394194,0.00010958,2]
[352770509,1739302238519,-413.43605806,0.00010958,2]
[352770510,1739302238529,-420.18254699,0.00010958,2]
[352770511,1739302238545,-204.51463663,0.00010958,2]
[352770512,1739302238555,-500.0,0.00010958,2]
[352770513,1739302238566,-508.08980421,0.00010958,2]
[352770514,1739302238577,-500.0,0.00010958,2]
[352770515,1739302238588,-500.0,0.00010958,2]
[352770516,1739302238599,-500.0,0.00010958,2]
[352770517,1739302238609,-500.0,0.00010958,2]
[352770518,1739302238619,-500.0,0.00010958,2]
[352770519,1739302238630,-501.14509164,0.00010958,2]
[352770520,1739302238639,-78.00182812,0.00010958,2]
[352770521,1739302238683,-421.99817188,0.00010958,2]
[352770522,1739302238694,-501.16086823,0.00010958,2]
[352770523,1739302238703,-500.0,0.00010958,2]
[352770524,1739302238714,-200.59100865,0.00010958,2]
[352770525,1739302238724,-500.0,0.00010958,2]
[352770526,1739302238733,-500.0,0.00010958,2]
[352770527,1739302238743,-500.0,0.00010958,2]
[352770528,1739302238753,-500.0,0.00010958,2]
[352770529,1739302238763,-500.0,0.00010958,2]
[352770530,1739302238774,-576.86667353,0.00010958,2]
[352770531,1739302238783,-603.4190948,0.00010958,2]
[352770532,1739302238793,-311.64678625,0.00010958,2]
[352770533,1739302238806,-188.35321375,0.00010958,2]
[352770534,1739302238816,-500.0,0.00010958,2]
[352770535,1739302238825,-500.0,0.00010958,2]
[352770537,1739302238835,-500.0,0.00010958,2]
[352770539,1739302238844,-500.0,0.00010958,2]
[352770541,1739302238855,-500.0,0.00010958,2]
[352770543,1739302238864,-610.74086386,0.00010958,2]
[352770544,1739302238873,-500.0,0.00010958,2]
[352770545,1739302238884,-500.0,0.00010958,2]
[352770546,1739302238895,-500.0,0.00010958,2]
[352770547,1739302238905,-500.0,0.00010958,2]
[352770548,1739302238915,-2032.02,0.00010958,2]
[352770549,1739302238924,-500.0,0.00010958,2]
[352770550,1739302238934,-559.99495398,0.00010958,2]
[352770551,1739302238944,-132.18229676,0.00010958,2]
[352770552,1739302238958,-367.81770324,0.00010958,2]
[352770553,1739302238968,-500.0,0.00010958,2]
[352770554,1739302238978,-566.49568062,0.00010958,2]
[352770555,1739302238988,-500.0,0.00010958,2]
[352770556,1739302238997,-32.12936217,0.00010958,2]
[352770557,1739302239010,-467.87063783,0.00010958,2]
[352770558,1739302239023,-98.43368547,0.00010958,2]
[352770559,1739302239035,-401.56631453,0.00010958,2]
[352770560,1739302239044,-852.86,0.00010958,2]
[352770561,1739302239054,-979.23,0.00010958,2]
[352770562,1739302239066,-225.15504428,0.00010958,2]
[352770563,1739302239076,-500.0,0.00010958,2]
[352770564,1739302239086,-5244.0,0.00010958,2]
[352770565,1739302239098,-804.47,0.00010958,2]
[352770566,1739302239108,-500.0,0.00010958,2]
[352770567,1739302239118,-500.0,0.00010958,2]
[352770568,1739302239128,-524.6,0.00010958,2]
[352770569,1739302239138,-732.84,0.00010958,2]
[352770570,1739302239147,-500.0,0.00010958,2]
[352770571,1739302239157,-170.76257795,0.00010958,2]
[352770572,1739302239174,-329.23742205,0.00010958,2]
[352770573,1739302239185,-94.55424726,0.00010958,2]
[352770574,1739302239200,-500.0,0.00010958,2]
[352770631,1739302240176,-65.16575274,0.00010958,2]
[352770632,1739302240186,-500.0,0.00010958,2]
[352770633,1739302240196,-500.0,0.00010958,2]
[352770634,1739302240206,-908.29,0.00010958,2]
[352770635,1739302240216,-552.2,0.00010958,2]
[352770636,1739302240227,-1570.91,0.00010958,2]
[352770637,1739302240237,-670.56,0.00010958,2]
[352770638,1739302240247,-500.0,0.00010958,2]
[352770639,1739302240258,-500.0,0.00010958,2]
[352770640,1739302240267,-1223.06,0.00010958,2]
[352770641,1739302240277,-817.3,0.00010958,2]
[352770643,1739302240286,-500.0,0.00010958,2]
[352770645,1739302240296,-3686.71,0.00010958,2]
[352770646,1739302240306,-500.0,0.00010958,2]
[352770647,1739302240316,-500.0,0.00010958,2]
[352770648,1739302240326,-1122.09,0.00010958,2]
[352770649,1739302240338,-500.0,0.00010958,2]
[352770650,1739302240351,-574.82,0.00010958,2]
[352770651,1739302240363,-636.01,0.00010958,2]
[352770652,1739302240373,-500.0,0.00010958,2]
[352770653,1739302240383,-532.08,0.00010958,2]
[352770654,1739302240393,-500.0,0.00010958,2]
[352770655,1739302240403,-550.28,0.00010958,2]
[352770656,1739302240412,-500.0,0.00010958,2]
[352770657,1739302240422,-548.46,0.00010958,2]
[352770658,1739302240432,-500.0,0.00010958,2]
[352770659,1739302240442,-500.0,0.00010958,2]
[352770660,1739302240451,-753.05,0.00010958,2]
[352770661,1739302240461,-5000.0,0.00010958,2]
[352770662,1739302240471,-2663.63,0.00010958,2]
[352770663,1739302240481,-2663.63,0.00010958,2]
[352770664,1739302240491,-2663.63,0.00010958,2]
[352770665,1739302240501,-2663.63,0.00010958,2]
[352770666,1739302240511,-2663.63,0.00010958,2]
[352770667,1739302240520,-1601.69,0.00010958,2]
[352770668,1739302240530,-304.16743019,0.00010958,2]
[352770669,1739302240540,-5000.0,0.00010958,2]
[352770670,1739302240550,-189.63565952,0.00010994,2]
[352770671,1739302240559,-336.222,0.00010998,2]
[352770672,1739302240569,-420.0,0.00011075,2]
[352770673,1739302240579,-2663.63,0.00011093,2]
[352770674,1739302240589,-2663.63,0.00011094,2]
[352770675,1739302240602,-2663.63,0.00011094,2]
[352770676,1739302240611,-2663.63,0.00011094,2]
[352770677,1739302240621,-75476.42947788,0.00011095,5]
[352770678,1739302240630,-27341.87396134,0.00011095,5]
[352770679,1739302240641,-500.0,0.00011095,2]
[352770680,1739302240651,-500.0,0.00011095,2]
[352770681,1739302240660,-500.0,0.00011095,2]
[352770682,1739302240670,-500.0,0.00011095,2]
[352770683,1739302240679,-500.0,0.00011095,2]
[352770684,1739302240689,-500.0,0.00011095,2]
[352770685,1739302240698,-500.0,0.00011095,2]
[352770686,1739302240707,-500.0,0.00011095,2]
[352770687,1739302240717,-500.0,0.00011095,2]
[352770688,1739302240726,-500.0,0.00011095,2]
[352770689,1739302240735,-500.0,0.00011095,2]
[352770690,1739302240745,-500.0,0.00011095,2]
[352770691,1739302240755,-500.0,0.00011095,2]
[352770692,1739302240764,-500.0,0.00011095,2]
[352770693,1739302240773,-500.0,0.00011095,2]
[352770694,1739302240783,-500.0,0.00011095,2]
[352770695,1739302240792,-500.0,0.00011095,2]
[352770696,1739302240802,-258.620639,0.00011095,2]
[352770697,1739302240811,-500.0,0.00011095,2]
[352770698,1739302240820,-500.0,0.00011095,2]
[352770699,1739302240829,-500.0,0.00011095,2]
[352770700,1739302240839,-500.0,0.00011095,2]
[352770701,1739302240850,-500.0,0.00011095,2]
[352770702,1739302240860,-500.0,0.00011095,2]
[352770703,1739302240870,-2032.02,0.00011095,2]
[352770704,1739302240880,-500.0,0.00011095,2]
[352770705,1739302240890,-500.0,0.00011095,2]
[352770706,1739302240902,-852.86,0.00011095,2]
[352770707,1739302240912,-979.23,0.00011095,2]
[352770708,1739302240922,-500.0,0.00011095,2]
[352770709,1739302240932,-5244.0,0.00011095,2]
[352770710,1739302240941,-804.47,0.00011095,2]
[352770711,1739302240951,-500.0,0.00011095,2]
[352770712,1739302240961,-500.0,0.00011095,2]
[352770713,1739302240971,-524.6,0.00011095,2]
[352770714,1739302241123,-732.84,0.00011095,2]
[352770715,1739302241133,-500.0,0.00011095,2]
[352770716,1739302241142,-500.0,0.00011095,2]
[352770717,1739302241152,-659.72,0.00011095,2]
[352770718,1739302241162,-500.0,0.00011095,2]
[352770719,1739302241171,-500.0,0.00011095,2]
[352770720,1739302241181,-908.29,0.00011095,2]
[352770721,1739302241191,-552.2,0.00011095,2]
[352770722,1739302241201,-1570.91,0.00011095,2]
[352770723,1739302241212,-670.56,0.00011095,2]
[352770724,1739302241222,-500.0,0.00011095,2]
[352770725,1739302241232,-500.0,0.00011095,2]
[352770726,1739302241241,-1223.06,0.00011095,2]
[352770727,1739302241251,-817.3,0.00011095,2]
[352770728,1739302241260,-500.0,0.00011095,2]
[352770729,1739302241270,-3686.71,0.00011095,2]
[352770730,1739302241280,-500.0,0.00011095,2]
[352770731,1739302241289,-500.0,0.00011095,2]
[352770732,1739302241298,-1122.09,0.00011095,2]
[352770733,1739302241308,-500.0,0.00011095,2]
[352770734,1739302241318,-574.82,0.00011095,2]
[352770735,1739302241328,-636.01,0.00011095,2]
[352770736,1739302241337,-500.0,0.00011095,2]
[352770737,1739302241347,-532.08,0.00011095,2]
[352770738,1739302241357,-500.0,0.00011095,2]
[352770739,1739302241367,-550.28,0.00011095,2]
[352770740,1739302241376,-500.0,0.00011095,2]
[352770741,1739302241386,-548.46,0.00011095,2]
[352770742,1739302241396,-500.0,0.00011095,2]
[352770743,1739302241405,-753.05,0.00011095,2]
[352770744,1739302241415,-1601.69,0.00011095,2]
[352770745,1739302241427,-151.0,0.000111,2]
[352770746,1739302241437,-2663.63,0.0001114,2]
[352770747,1739302241448,-2663.63,0.0001114,2]
[352770748,1739302241457,-2663.63,0.0001114,2]
[352770749,1739302241466,-2663.63,0.0001114,2]
[352770750,1739302241477,-2000.0,0.00011198,2]
[352770751,1739302241486,-529.0,0.000112,3]
[352770752,1739302241496,-151.0,0.000112,2]
[352770753,1739302241506,-2663.63,0.00011228,2]
[352770754,1739302241515,-2663.63,0.00011228,2]
[352770755,1739302241525,-2663.63,0.0001123,2]
[352770756,1739302241534,-2663.63,0.00011231,2]
[352770757,1739302241543,-2663.63,0.00011231,2]
[352770758,1739302241553,-2663.63,0.00011231,2]
[352770759,1739302241563,-162.375857,0.00011232,4]
[352770760,1739302241573,-500.0,0.00011232,2]
[352770761,1739302241583,-500.0,0.00011232,2]
[352770762,1739302241592,-283.31864067,0.00011232,2]
[352770763,1739302241612,-216.68135933,0.00011232,2]
[352770764,1739302241622,-500.0,0.00011232,2]
[352770765,1739302241631,-98.90342328,0.00011232,2]
[352770766,1739302241644,-401.09657672,0.00011232,2]
[352770767,1739302241654,-500.0,0.00011232,2]
[352770768,1739302241663,-500.0,0.00011232,2]
[352770769,1739302241674,-500.0,0.00011232,2]
[352770770,1739302241684,-452.13876183,0.00011232,2]
[352770771,1739302241696,-47.86123817,0.00011232,2]
[352770772,1739302241706,-500.0,0.00011232,2]
[352770773,1739302241715,-500.0,0.00011232,2]
[352770774,1739302241725,-500.0,0.00011232,2]
[352770775,1739302241735,-500.0,0.00011232,2]
[352770776,1739302241745,-500.0,0.00011232,2]
[352770777,1739302241754,-500.0,0.00011232,2]
[352770778,1739302241764,-500.0,0.00011232,2]
[352770779,1739302241774,-535.66817753,0.00011232,2]
[352770780,1739302241783,-500.0,0.00011232,2]
[352770781,1739302241793,-500.0,0.00011232,2]
[352770782,1739302241802,-500.0,0.00011232,2]
[352770783,1739302241811,-500.0,0.00011232,2]
[352770784,1739302241821,-500.0,0.00011232,2]
[352770785,1739302241830,-2032.02,0.00011232,2]
[352770786,1739302241840,-500.0,0.00011232,2]
[352770787,1739302241851,-500.0,0.00011232,2]
[352770788,1739302241861,-852.86,0.00011232,2]
[352770789,1739302241871,-979.23,0.00011232,2]
[352770790,1739302241880,-500.0,0.00011232,2]
[352770791,1739302241890,-5244.0,0.00011232,2]
[352770792,1739302241899,-804.47,0.00011232,2]
[352770793,1739302241909,-500.0,0.00011232,2]
[352770794,1739302241918,-500.0,0.00011232,2]
[352770795,1739302241928,-524.6,0.00011232,2]
[352770796,1739302241937,-732.84,0.00011232,2]
[352770797,1739302241947,-500.0,0.00011232,2]
[352770798,1739302241956,-500.0,0.00011232,2]
[352770799,1739302241966,-659.72,0.00011232,2]
[352770800,1739302241976,-500.0,0.00011232,2]
[352770801,1739302241986,-500.0,0.00011232,2]
[352770802,1739302241996,-908.29,0.00011232,2]
[352770803,1739302242006,-552.2,0.00011232,2]
[352770804,1739302242015,-1570.91,0.00011232,2]
[352770805,1739302242026,-670.56,0.00011232,2]
[352770806,1739302242039,-500.0,0.00011232,2]
[352770807,1739302242049,-500.0,0.00011232,2]
[352770808,1739302242059,-1223.06,0.00011232,2]
[352770809,1739302242070,-817.3,0.00011232,2]
[352770810,1739302242082,-500.0,0.00011232,2]
[352770811,1739302242092,-3686.71,0.00011232,2]
[352770812,1739302242105,-500.0,0.00011232,2]
[352770813,1739302242115,-500.0,0.00011232,2]
[352770814,1739302242125,-1122.09,0.00011232,2]
[352770815,1739302242135,-500.0,0.00011232,2]
[352770816,1739302242144,-574.82,0.00011232,2]
[352770817,1739302242154,-636.01,0.00011232,2]
[352770818,1739302242164,-500.0,0.00011232,2]
[352770819,1739302242174,-532.08,0.00011232,2]
[352770820,1739302242183,-500.0,0.00011232,2]
[352770821,1739302242193,-550.28,0.00011232,2]
[352770822,1739302242203,-500.0,0.00011232,2]
[352770823,1739302242213,-548.46,0.00011232,2]
[352770824,1739302242223,-500.0,0.00011232,2]
[352770825,1739302242234,-753.05,0.00011232,2]
[352770826,1739302242244,-1601.69,0.00011232,2]
[352770827,1739302242255,-465.08256732,0.00011239,2]
[352770828,1739302242266,-265.4652717,0.00011255,2]
[352770829,1739302242276,-6854.99,0.0001128,7]
[352770830,1739302242285,-2000.0,0.000113,2]
[352770831,1739302242295,-2000.0,0.000113,2]
[352770832,1739302242304,-151.0,0.000113,2]
[352770834,1739302242314,-2663.63,0.00011307,2]
[352770836,1739302242324,-2663.63,0.00011307,2]
[352770837,1739302242334,-2663.63,0.00011307,2]
[352770838,1739302242343,-2663.63,0.00011307,2]
[352770839,1739302242356,-2663.81473947,0.00011307,2]
[352770840,1739302242366,-12911.43296905,0.00011367,2]
[352770841,1739302242376,-231.15233813,0.00011368,2]
[352770842,1739302242385,-500.0,0.00011368,2]
[352770843,1739302242395,-358.39281212,0.00011368,2]
[352770845,1739302242405,-500.0,0.00011368,2]
[352770846,1739302242415,-500.0,0.00011368,2]
[352770847,1739302242425,-500.0,0.00011368,2]
[352770848,1739302242435,-580.69018556,0.00011368,2]
[352770851,1739302242446,-500.0,0.00011369,2]
[352770852,1739302242456,-500.0,0.00011369,2]
[352770855,1739302242466,-500.0,0.00011369,2]
[352770858,1739302242476,-500.0,0.00011369,2]
[352770861,1739302242486,-500.0,0.00011369,2]
[352770862,1739302242495,-3.56072444,0.00011369,2]
[352770863,1739302242507,-496.43927556,0.00011369,2]
[352770864,1739302242516,-500.0,0.00011369,2]
[352770865,1739302242526,-500.0,0.00011369,2]
[352770866,1739302242535,-500.0,0.00011369,2]
[352770867,1739302242544,-500.0,0.00011369,2]
[352770868,1739302242554,-500.0,0.00011369,2]
[352770869,1739302242563,-500.0,0.00011369,2]
[352770870,1739302242573,-500.0,0.00011369,2]
[352770871,1739302242583,-500.0,0.00011369,2]
[352770872,1739302242592,-500.0,0.00011369,2]
[352770873,1739302242604,-500.0,0.00011369,2]
[352770874,1739302242614,-500.0,0.00011369,2]
[352770876,1739302242624,-500.0,0.00011369,2]
[352770877,1739302242633,-500.0,0.00011369,2]
[352770879,1739302242643,-150.24,0.00011369,2]
[352770881,1739302242652,-500.0,0.00011369,2]
[352770883,1739302242662,-300.14,0.00011369,2]
[352770884,1739302242672,-300.14,0.00011369,2]
[352770886,1739302242681,-150.24,0.00011369,2]
[352770888,1739302242693,-500.0,0.00011369,2]
[352770889,1739302242706,-2032.02,0.00011369,2]
[352770890,1739302242719,-300.14,0.00011369,2]
[352770891,1739302242731,-153.8810426,0.00011369,2]
[352770893,1739302242743,-373.16466508,0.00011369,2]
[352770895,1739302242755,-852.86,0.00011369,2]
[352770897,1739302242766,-979.23,0.00011369,2]
[352770899,1739302242776,-500.0,0.00011369,2]
[352770902,1739302242787,-5244.0,0.00011369,2]
[352770903,1739302242799,-804.47,0.00011369,2]
[352770906,1739302242811,-500.0,0.00011369,2]
[352770908,1739302242822,-500.0,0.00011369,2]
[352770910,1739302242833,-524.6,0.00011369,2]
[352770912,1739302242845,-732.84,0.00011369,2]
[352770914,1739302242858,-500.0,0.00011369,2]
[352770917,1739302242871,-500.0,0.00011369,2]
[352770919,1739302242883,-500.0,0.00011369,2]
[352770921,1739302242895,-659.72,0.00011369,2]
[352770923,1739302242907,-500.0,0.00011369,2]
[352770926,1739302242919,-500.0,0.00011369,2]
[352770928,1739302242931,-908.29,0.00011369,2]
[352770930,1739302242943,-552.2,0.00011369,2]
[352770932,1739302242955,-1570.91,0.00011369,2]
[352770934,1739302242967,-670.56,0.00011369,2]
[352770937,1739302242980,-350.87062823,0.00011369,2]
[352770951,1739302243119,-500.0,0.00010958,2]
[352770954,1739302243131,-1.98864177,0.00010958,2]
[352770956,1739302243146,-498.01135823,0.00010958,2]
[352770958,1739302243157,-146.94317548,0.00010958,2]
[352770961,1739302243172,-5630.42682452,0.00010958,2]
[352770963,1739302243185,-149.12937177,0.00011369,2]
[352770966,1739302243200,-500.0,0.00011369,2]
[352770968,1739302243213,-1223.06,0.00011369,2]
[352770970,1739302243225,-817.3,0.00011369,2]
[352770972,1739302243238,-500.0,0.00011369,2]
[352770975,1739302243249,-3686.71,0.00011369,2]
[352770977,1739302243262,-500.0,0.00011369,2]
[352770979,1739302243274,-500.0,0.00011369,2]
[352770981,1739302243284,-1122.09,0.00011369,2]
[352770983,1739302243297,-500.0,0.00011369,2]
[352770985,1739302243307,-574.82,0.00011369,2]
[352770988,1739302243317,-636.01,0.00011369,2]
[352770990,1739302243328,-500.0,0.00011369,2]
[352770992,1739302243339,-532.08,0.00011369,2]
[352770994,1739302243351,-500.0,0.00011369,2]
[352770996,1739302243364,-550.28,0.00011369,2]
[352770998,1739302243376,-150.24,0.00011369,2]
[352771001,1739302243388,-199.72255731,0.00011369,2]
[352771003,1739302243399,-500.0,0.00011369,2]
[352771005,1739302243409,-500.0,0.00011369,2]
[352771007,1739302243420,-548.46,0.00011369,2]
[352771009,1739302243431,-150.24,0.00011369,2]
[352771010,1739302243442,-150.24,0.00011369,2]
[352771011,1739302243454,-150.24,0.00011369,2]
[352771012,1739302243467,-150.24,0.00011369,2]
[352771013,1739302243478,-150.24,0.00011369,2]
[352771014,1739302243488,-500.0,0.00011369,2]
[352771015,1739302243499,-150.24,0.00011369,2]
[352771016,1739302243509,-753.05,0.00011369,2]
[352771017,1739302243521,-1601.69,0.00011369,2]
[352771018,1739302243532,-1000.0,0.0001138,2]
[352771019,1739302243543,-3470.7912464,0.00011395,2]
[352771020,1739302243558,-476.0,0.00011395,2]
[352771021,1739302243572,-81319.34331027,0.00011395,2]
[352771022,1739302243587,-5275.88166575,0.00011395,2]
[352771023,1739302243601,-534.55262613,0.00011395,2]
[352771024,1739302243614,-287.4975214,0.00011395,2]
[352771025,1739302243628,-34679.37829507,0.00011395,2]
[352771294,1739302246139,-500.0,0.00010958,2]
[352771297,1739302246151,-800.19,0.00010959,2]
[352771299,1739302246163,-200.9463862,0.00011395,2]
[352771303,1739302246199,-500.0,0.00011095,2]
[352771306,1739302246211,-1405.1,0.00011395,2]
[352771308,1739302246225,-9500.0,0.00011395,2]
[352772569,1739303143106,-425.52769235,9.968e-05,2]
[352772570,1739303225085,-271.41464992,9.768e-05,2]
[352772571,1739303225107,-1823.82315008,9.867e-05,2]
[352772572,1739303362090,-954.64152,9.867e-05,2]
[352772573,1739303370085,-490.0,9.768e-05,2]
[352772792,1739303438034,-1731.53532992,9.768e-05,2]
[352772795,1739303438045,-300.0,9.967e-05,2]
[352772797,1739303438055,-4220.195311,9.968e-05,2]
[352772827,1739303438345,-4758.10303757,9.968e-05,2]
[352772829,1739303438357,-4746.4,9.968e-05,2]
[352772840,1739303438453,-10749.77395908,9.968e-05,2]
[352772842,1739303438463,-2185.9663213,0.00010069,2]
[352772844,1739303438474,-296.4301864,0.00010121,2]
[352772846,1739303438483,-400.0,0.00010685,2]
[352772848,1739303438493,-500.0,0.00010957,2]
[352772850,1739303438503,-634.95947837,0.00010957,2]
[352772852,1739303438513,-500.0,0.00010957,2]
[352772854,1739303438522,-500.0,0.00010957,2]
[352772856,1739303438533,-500.0,0.00010957,2]
[352772858,1739303438542,-500.0,0.00010957,2]
[352772860,1739303438552,-500.0,0.00010957,2]
[352772862,1739303438561,-500.0,0.00010957,2]
[352772864,1739303438571,-500.0,0.00010957,2]
[352772866,1739303438580,-500.0,0.00010957,2]
[352772868,1739303438590,-500.0,0.00010957,2]
[352772870,1739303438599,-500.0,0.00010957,2]
[352772872,1739303438609,-500.0,0.00010957,2]
[352772874,1739303438620,-500.0,0.00010957,2]
[352772876,1739303438630,-500.0,0.00010957,2]
[352772879,1739303438643,-500.0,0.00010957,2]
[352772880,1739303438653,-500.0,0.00010957,2]
[352772882,1739303438663,-500.0,0.00010957,2]
[352772885,1739303438672,-500.0,0.00010957,2]
[352772886,1739303438682,-500.0,0.00010957,2]
[352772889,1739303438691,-500.0,0.00010957,2]
[352772891,1739303438701,-500.0,0.00010957,2]
[352772893,1739303438711,-500.0,0.00010957,2]
[352772895,1739303438720,-500.0,0.00010957,2]
[352772897,1739303438730,-500.0,0.00010957,2]
[352772899,1739303438739,-466.24949556,0.00010957,2]
[352772901,1739303438749,-500.0,0.00010957,2]
[352772903,1739303438759,-500.0,0.00010957,2]
[352772904,1739303438768,-500.0,0.00010957,2]
[352772906,1739303438778,-500.0,0.00010957,2]
[352772908,1739303438788,-500.0,0.00010957,2]
[352772911,1739303438798,-500.0,0.00010957,2]
[352772913,1739303438808,-500.0,0.00010957,2]
[352772915,1739303438818,-650.0,0.00010957,2]
[352772917,1739303438827,-504.00330381,0.00010958,2]
[352772918,1739303438837,-500.0,0.00010958,2]
[352772921,1739303438847,-500.0,0.00010958,2]
[352772923,1739303438856,-302.662848,0.00010958,2]
[352772925,1739303438865,-500.0,0.00010958,2]
[352772927,1739303438875,-500.0,0.00010958,2]
[352772929,1739303438885,-500.0,0.00010958,2]
[352772931,1739303438897,-162.15782681,0.00010958,2]
[352772933,1739303438907,-500.0,0.00010958,2]
[352772934,1739303438916,-501.0863092,0.00010958,2]
[352772935,1739303438926,-500.0,0.00010958,2]
[352772937,1739303438936,-503.22028807,0.00010958,2]
[352772939,1739303438945,-500.0,0.00010958,2]
[352772941,1739303438954,-500.0,0.00010958,2]
[352772943,1739303438963,-371.21378478,0.00010958,2]
[352772945,1739303438973,-500.0,0.00010958,2]
[352772947,1739303438982,-500.0,0.00010958,2]
[352772949,1739303438992,-500.0,0.00010958,2]
[352772951,1739303439003,-500.0,0.00010958,2]